[Event "GER-ch Youth U12 2020"]
[Site "Willingen"]
[Date "2020.10.29"]
[Round "4.16"]
[White "Cromm, Mika"]
[Black "Kiefhaber, Tobias"]
[Result "0-1"]
[ECO "A41"]
[WhiteElo "1665"]
[BlackElo "1542"]
[Annotator "NA RC"]
[PlyCount "62"]
[EventDate "2020.10.27"]
[EventType "swiss"]
[EventRounds "7"]
[EventCountry "GER"]
[SourceTitle "playchess.com"]
[Source "ChessBase"]
[SourceQuality "1"]
[TimeControl "40/5400+30:1800+30"]

1. d4 {[%emt 0:00:00]} d6 {[%emt 0:00:00]} 2. c4 {[%emt 0:00:31]} e5 {[%emt 0:00:00]} 3. dxe5 {[%emt 0:01:36]} dxe5 {[%emt 0:00:09]} 4. Qxd8+ {[%emt 0:02:30]} Kxd8 {[%emt 0:00:06]} 5. e3 {[%emt 0:01:48]} Be6 {[%emt 0:00:46]} 6. Nf3 {[%emt 0:02:31]} Nd7 {[%emt 0:02:03]} 7. Ng5 {[%emt 0:03:56]} c6 {[%emt 0:04:52]} 8. Nxe6+ {[%emt 0:01:22]} fxe6 {[%emt 0:00:44]} 9. Be2 {[%emt 0:01:08]} Ngf6 {[%emt 0:00:39]} 10. O-O {[%emt 0:01:41]} Kc7 {[%emt 0:00:45]} 11. Nc3 {[%emt 0:11:58]} Be7 {[%emt 0:03:28]} 12. b3 {[%emt 0:01:57]} g5 {[%emt 0:03:41]} 13. Rb1 {[%emt 0:11:26]} Rag8 {[%emt 0:04:08]} 14. b4 {[%emt 0:00:52]} g4 {[%emt 0:01:59]} 15. b5 {[%emt 0:01:48]} c5 {[%emt 0:03:26]} 16. a4 {[%emt 0:01:18]} h5 {[%emt 0:00:51]} 17. a5 {[%emt 0:00:57]} h4 {[%emt 0:00:23]} 18. f3 {[%emt 0:04:08]} gxf3 {[%emt 0:08:14]} 19. Bxf3 {[%emt 0:01:11]} Rh7 {[%emt 0:03:39]} 20. e4 {[%emt 0:03:44]} Rhg7 {[%emt 0:03:26]} 21. Rb2 {[%emt 0:03:45]} Nh7 {[%emt 0:05:20]} 22. Na4 {[%emt 0:01:48]} Bg5 {[%emt 0:02:24]} 23. Bxg5 {[%emt 0:04:45]} Nxg5 {[%emt 0:01:10]} 24. Bg4 {[%emt 0:04:13]} h3 {[%emt 0:04:25]} 25. g3 {[%emt 0:01:25]} Nxe4 {[%emt 0:00:51]} 26. Bxe6 {[%emt 0:00:38]} Rf8 {[%emt 0:00:10]} 27. Rxf8 {[%emt 0:02:33]} Nxf8 {[%emt 0:00:14]} 28. Bxh3 {[%emt 0:00:42]} Nd6 {[%emt 0:01:34]} 29. Nxc5 {[%emt 0:06:12]} Nxc4 {[%emt 0:00:24]} 30. Rc2 {[%emt 0:00:24]} Ne3 {[%emt 0:00:59]} 31. Ne4+ {[%emt 0:03:00]} Nxc2 {[%emt 0:01:24]} 0-1

[Event "GER-ch Youth U12 2020"]
[Site "Willingen"]
[Date "2020.10.29"]
[Round "4.17"]
[White "Isbilir, Levin"]
[Black "Eichhorn, Valentin"]
[Result "1/2-1/2"]
[ECO "B24"]
[WhiteElo "1233"]
[BlackElo "1545"]
[Annotator "NA RC"]
[PlyCount "74"]
[EventDate "2020.10.27"]
[EventType "swiss"]
[EventRounds "7"]
[EventCountry "GER"]
[SourceTitle "playchess.com"]
[Source "ChessBase"]
[SourceQuality "1"]
[TimeControl "40/5400+30:1800+30"]

1. e4 {[%emt 0:00:00]} c5 {[%emt 0:00:00]} 2. Nc3 {[%emt 0:00:00]} Nc6 {[%emt 0:00:00]} 3. g3 {[%emt 0:00:11]} d6 {[%emt 0:00:27]} 4. d3 {[%emt 0:00:17]} g6 {[%emt 0:00:52]} 5. Be3 {[%emt 0:00:29]} Bg7 {[%emt 0:00:44]} 6. Qd2 {[%emt 0:00:28]} e6 {[%emt 0:01:02]} 7. Bg2 {[%emt 0:00:57]} Nge7 {[%emt 0:00:30]} 8. Bh6 {[%emt 0:06:39]} O-O {[%emt 0:01:08]} 9. h4 {[%emt 0:02:32]} Bxh6 {[%emt 0:11:47]} 10. Qxh6 {[%emt 0:00:10]} Kh8 {[%emt 0:00:52]} 11. h5 {[%emt 0:10:07]} Ng8 {[%emt 0:03:23]} 12. Qd2 {[%emt 0:02:05]} g5 {[%emt 0:21:32]} 13. Nge2 {[%emt 0:28:49]} h6 {[%emt 0:01:20]} 14. O-O-O {[%emt 0:01:14]} e5 {[%emt 0:07:10]} 15. f4 {[%emt 0:02:57]} f6 {[%emt 0:04:41]} 16. Rdf1 {[%emt 0:04:10]} Be6 {[%emt 0:06:36]} 17. fxg5 {[%emt 0:03:09]} fxg5 {[%emt 0:00:08]} 18. Rxf8 {[%emt 0:00:17]} Qxf8 {[%emt 0:00:09]} 19. Rf1 {[%emt 0:00:24]} Qg7 {[%emt 0:00:06]} 20. Rf2 {[%emt 0:09:17]} Nf6 {[%emt 0:02:33]} 21. Qe1 {[%emt 0:06:00]} a6 {[%emt 0:03:36]} 22. Qf1 {[%emt 0:02:13]} Rf8 {[%emt 0:01:24]} 23. Nd5 {[%emt 0:01:09]} Bxd5 {[%emt 0:02:04]} 24. exd5 {[%emt 0:00:09]} Ne7 {[%emt 0:00:47]} 25. c4 {[%emt 0:01:43]} Nd7 {[%emt 0:02:01]} 26. Rxf8+ {[%emt 0:01:03]} Qxf8 {[%emt 0:00:09]} 27. Qxf8+ {[%emt 0:00:07]} Nxf8 {[%emt 0:00:08]} 28. Bh3 {[%emt 0:00:19]} Nh7 {[%emt 0:00:29]} 29. Be6 {[%emt 0:00:14]} Nf6 {[%emt 0:00:57]} 30. g4 {[%emt 0:00:09]} Kg7 {[%emt 0:03:32]} 31. Ng3 {[%emt 0:01:26]} b6 {[%emt 0:01:33]} 32. Ne4 {[%emt 0:00:45]} Nxe4 {[%emt 0:00:49]} 33. dxe4 {[%emt 0:00:08]} Ng8 {[%emt 0:02:32]} 34. Bxg8 {[%emt 0:01:53]} Kxg8 {[%emt 0:00:02]} 35. Kc2 {[%emt 0:06:14]} Kf7 {[%emt 0:00:44]} 36. Kc3 {[%emt 0:00:40]} Ke7 {[%emt 0:00:29]} 37. a4 {[%emt 0:03:17]} a5 {[%emt 0:01:38]} 1/2-1/2

[Event "GER-ch Youth U12 2020"]
[Site "Willingen"]
[Date "2020.10.29"]
[Round "4.18"]
[White "Huber, Benedikt"]
[Black "Vecera, Fabio"]
[Result "0-1"]
[ECO "B02"]
[WhiteElo "1725"]
[BlackElo "1534"]
[Annotator "NA RC"]
[PlyCount "70"]
[EventDate "2020.10.27"]
[EventType "swiss"]
[EventRounds "7"]
[EventCountry "GER"]
[SourceTitle "playchess.com"]
[Source "ChessBase"]
[SourceQuality "1"]
[TimeControl "40/5400+30:1800+30"]

1. e4 {[%emt 0:00:00]} Nf6 {[%emt 0:00:00]} 2. Nc3 {[%emt 0:00:07]} d5 {[%emt 0:00:00]} 3. exd5 {[%emt 0:01:01]} Nxd5 {[%emt 0:00:00]} 4. Bc4 {[%emt 0:01:33]} Nb6 {[%emt 0:01:31]} 5. Bb3 {[%emt 0:00:17]} g6 {[%emt 0:01:56]} 6. Nf3 {[%emt 0:04:12]} Bg7 {[%emt 0:00:10]} 7. d3 {[%emt 0:02:11]} O-O {[%emt 0:01:08]} 8. O-O {[%emt 0:02:33]} Nc6 {[%emt 0:01:30]} 9. Re1 {[%emt 0:05:47]} Bg4 {[%emt 0:04:34]} 10. h3 {[%emt 0:00:51]} Bxf3 {[%emt 0:04:01]} 11. Qxf3 {[%emt 0:03:51]} a5 {[%emt 0:01:08]} 12. a3 {[%emt 0:13:14]} Nd4 {[%emt 0:02:53]} 13. Qd1 {[%emt 0:09:25]} Nxb3 {[%emt 0:00:31]} 14. cxb3 {[%emt 0:00:04]} Qd7 {[%emt 0:01:14]} 15. Qc2 {[%emt 0:02:44]} Rfd8 {[%emt 0:00:53]} 16. Rd1 {[%emt 0:00:41]} Qc6 {[%emt 0:02:51]} 17. Bg5 {[%emt 0:03:15]} Rd7 {[%emt 0:02:22]} 18. Rac1 {[%emt 0:01:44]} h6 {[%emt 0:01:14]} 19. Bh4 {[%emt 0:01:12]} Rad8 {[%emt 0:00:27]} 20. Bg3 {[%emt 0:02:44]} Nc8 {[%emt 0:08:16]} 21. Rd2 {[%emt 0:08:23]} Nd6 {[%emt 0:02:34]} 22. Qd1 {[%emt 0:05:17]} Qa6 {[%emt 0:03:49]} 23. Qc2 {[%emt 0:15:59]} Nf5 {[%emt 0:00:56]} 24. Rcd1 {[%emt 0:00:08]} Nd4 {[%emt 0:00:45]} 25. Qb1 {[%emt 0:00:47]} Nxb3 {[%emt 0:00:09]} 26. Re2 {[%emt 0:00:20]} Nc5 {[%emt 0:04:38]} 27. Red2 {[%emt 0:02:08]} c6 {[%emt 0:09:07]} 28. Bh4 {[%emt 0:11:22]} g5 {[%emt 0:00:46]} 29. Bg3 {[%emt 0:00:04]} b5 {[%emt 0:00:18]} 30. Ne2 {[%emt 0:00:49]} b4 {[%emt 0:01:28]} 31. d4 {[%emt 0:01:27]} Nb3 {[%emt 0:01:17]} 32. Rd3 {[%emt 0:00:12]} Nxd4 {[%emt 0:00:49]} 33. Nxd4 {[%emt 0:00:46]} Rxd4 {[%emt 0:01:07]} 34. Rxd4 {[%emt 0:00:41]} Rxd4 {[%emt 0:00:16]} 35. Re1 {[%emt 0:00:24]} e6 {[%emt 0:01:23]} 0-1

[Event "GER-ch Youth U12 2020"]
[Site "Willingen"]
[Date "2020.10.29"]
[Round "4.19"]
[White "Brandstrup, Luca Alexander"]
[Black "Torosyan, Bagrat"]
[Result "0-1"]
[ECO "B90"]
[WhiteElo "1575"]
[BlackElo "1634"]
[Annotator "NA RC"]
[PlyCount "50"]
[EventDate "2020.10.27"]
[EventType "swiss"]
[EventRounds "7"]
[EventCountry "GER"]
[SourceTitle "playchess.com"]
[Source "ChessBase"]
[SourceQuality "1"]
[TimeControl "40/5400+30:1800+30"]

1. e4 {[%emt 0:00:00]} c5 {[%emt 0:00:00]} 2. Nf3 {[%emt 0:00:00]} d6 {[%emt 0:00:00]} 3. d4 {[%emt 0:00:00]} cxd4 {[%emt 0:00:00]} 4. Nxd4 {[%emt 0:00:00]} Nf6 {[%emt 0:00:05]} 5. Nc3 {[%emt 0:00:04]} a6 {[%emt 0:00:05]} 6. Be3 {[%emt 0:00:13]} e5 {[%emt 0:00:13]} 7. Nb3 {[%emt 0:00:06]} Be6 {[%emt 0:00:10]} 8. f3 {[%emt 0:00:09]} Be7 {[%emt 0:00:24]} 9. Qd2 {[%emt 0:00:06]} Nbd7 {[%emt 0:00:28]} 10. O-O-O {[%emt 0:00:16]} b5 {[%emt 0:00:17]} 11. g4 {[%emt 0:00:16]} Nb6 {[%emt 0:00:15]} 12. g5 {[%emt 0:00:09]} Nfd7 {[%emt 0:00:09]} 13. Nd5 {[%emt 0:00:25]} Nxd5 {[%emt 0:01:23]} 14. exd5 {[%emt 0:00:33]} Bf5 {[%emt 0:00:12]} 15. Na5 {[%emt 0:02:12]} Qc7 {[%emt 0:06:33]} 16. Nc6 {[%emt 0:00:56]} Nb8 {[%emt 0:02:17]} 17. Nxe5 {[%emt 0:05:34]} dxe5 18. d6 {[%emt 0:00:20]} Bxd6 {[%emt 0:00:48]} 19. c3 {[%emt 0:03:37]} Be7 {[%emt 0:01:52]} 20. Qd5 {[%emt 0:02:27]} Nc6 {[%emt 0:04:24]} 21. f4 {[%emt 0:01:02]} Rd8 {[%emt 0:02:38]} 22. Qf3 {[%emt 0:00:25]} Rxd1+ {[%emt 0:00:08]} 23. Kxd1 {[%emt 0:00:43]} O-O {[%emt 0:02:15]} 24. fxe5 {[%emt 0:02:17]} Qd7+ {[%emt 0:00:16]} 25. Kc1 {[%emt 0:03:49]} Bg4 {[%emt 0:01:48]} 0-1

[Event "GER-ch Youth U12 2020"]
[Site "Willingen"]
[Date "2020.10.29"]
[Round "4.21"]
[White "Weyerer, Noah"]
[Black "Guo, Jacob Tingshen"]
[Result "1/2-1/2"]
[ECO "A80"]
[WhiteElo "1536"]
[BlackElo "1551"]
[Annotator "NA RC"]
[PlyCount "51"]
[EventDate "2020.10.27"]
[EventType "swiss"]
[EventRounds "7"]
[EventCountry "GER"]
[SourceTitle "playchess.com"]
[Source "ChessBase"]
[SourceQuality "1"]
[TimeControl "40/5400+30:1800+30"]

1. d4 {[%emt 0:00:00]} f5 {[%emt 0:00:00]} 2. Nc3 {[%emt 0:00:00]} Nf6 {[%emt 0:00:57]} 3. Bg5 {[%emt 0:00:06]} h6 {[%emt 0:05:41]} 4. Bxf6 {[%emt 0:00:29]} exf6 {[%emt 0:00:49]} 5. e3 {[%emt 0:00:48]} d5 {[%emt 0:01:38]} 6. Qh5+ {[%emt 0:00:52]} Ke7 {[%emt 0:04:43]} 7. Bd3 {[%emt 0:02:28]} Qd7 {[%emt 0:03:52]} 8. Nge2 {[%emt 0:02:38]} c6 {[%emt 0:05:06]} 9. Ng3 {[%emt 0:08:29]} Qe8 {[%emt 0:09:49]} 10. Qf3 {[%emt 0:04:47]} g6 {[%emt 0:06:43]} 11. h4 {[%emt 0:02:54]} h5 {[%emt 0:03:23]} 12. Nce2 {[%emt 0:02:32]} Bh6 {[%emt 0:05:26]} 13. O-O-O {[%emt 0:06:14]} Kf7 {[%emt 0:07:54]} 14. Nf4 {[%emt 0:04:34]} Kg7 {[%emt 0:07:44]} 15. c4 {[%emt 0:06:37]} Bxf4 {[%emt 0:03:50]} 16. Qxf4 {[%emt 0:02:53]} Qf7 {[%emt 0:06:16]} 17. b3 {[%emt 0:03:38]} Be6 {[%emt 0:01:55]} 18. cxd5 {[%emt 0:01:52]} cxd5 {[%emt 0:01:39]} 19. Kb2 {[%emt 0:02:07]} a5 {[%emt 0:02:45]} 20. Bb5 {[%emt 0:01:22]} Bd7 {[%emt 0:04:47]} 21. Bxd7 {[%emt 0:01:13]} Qxd7 {[%emt 0:00:46]} 22. Rc1 {[%emt 0:01:45]} Nc6 {[%emt 0:00:54]} 23. a3 {[%emt 0:01:11]} Rhc8 {[%emt 0:02:49]} 24. Rc3 {[%emt 0:02:33]} b5 {[%emt 0:04:18]} 25. Rc5 {[%emt 0:04:03]} b4 {[%emt 0:03:52]} 26. a4 {[%emt 0:03:48]} 1/2-1/2

[Event "GER-ch Youth U12 2020"]
[Site "Willingen"]
[Date "2020.10.29"]
[Round "4.22"]
[White "Schwarz, David"]
[Black "Gärtner, Alessandro"]
[Result "1/2-1/2"]
[ECO "B10"]
[WhiteElo "1200"]
[BlackElo "1251"]
[Annotator "NA RC"]
[PlyCount "86"]
[EventDate "2020.10.27"]
[EventType "swiss"]
[EventRounds "7"]
[EventCountry "GER"]
[SourceTitle "playchess.com"]
[Source "ChessBase"]
[SourceQuality "1"]
[TimeControl "40/5400+30:1800+30"]

1. e4 {[%emt 0:00:00]} c6 {[%emt 0:00:00]} 2. Nc3 {[%emt 0:00:00]} d5 {[%emt 0:00:02]} 3. Nf3 {[%emt 0:00:40]} dxe4 {[%emt 0:00:14]} 4. Nxe4 {[%emt 0:00:15]} Nf6 {[%emt 0:00:14]} 5. Qe2 {[%emt 0:00:23]} Nxe4 {[%emt 0:00:41]} 6. Qxe4 {[%emt 0:02:12]} Qa5 {[%emt 0:01:53]} 7. Bc4 {[%emt 0:01:54]} Bf5 {[%emt 0:00:25]} 8. Qf4 {[%emt 0:03:32]} e6 {[%emt 0:00:38]} 9. Nd4 {[%emt 0:02:12]} Be7 {[%emt 0:14:58]} 10. O-O {[%emt 0:02:52]} O-O {[%emt 0:04:10]} 11. Re1 {[%emt 0:03:26]} Bf6 {[%emt 0:03:50]} 12. Nxf5 {[%emt 0:00:29]} Qxf5 {[%emt 0:00:13]} 13. Qxf5 {[%emt 0:00:10]} exf5 {[%emt 0:00:01]} 14. c3 {[%emt 0:00:24]} Nd7 {[%emt 0:00:23]} 15. d4 {[%emt 0:00:43]} Rfe8 {[%emt 0:01:01]} 16. Bd2 {[%emt 0:01:25]} Nb6 {[%emt 0:01:09]} 17. Bd3 {[%emt 0:01:14]} g6 {[%emt 0:02:14]} 18. f4 Kf8 {[%emt 0:00:47]} 19. Kf2 {[%emt 0:01:39]} Rxe1 {[%emt 0:01:00]} 20. Rxe1 {[%emt 0:00:10]} Re8 {[%emt 0:00:07]} 21. Kf3 {[%emt 0:01:21]} Rxe1 {[%emt 0:01:55]} 22. Bxe1 {[%emt 0:00:10]} Bd8 {[%emt 0:02:25]} 23. b3 {[%emt 0:02:17]} Ke8 {[%emt 0:02:05]} 24. c4 {[%emt 0:00:56]} Be7 {[%emt 0:00:22]} 25. c5 {[%emt 0:02:21]} Nd5 {[%emt 0:00:21]} 26. Bc4 {[%emt 0:02:02]} Kd7 {[%emt 0:01:22]} 27. Bxd5 {[%emt 0:01:27]} cxd5 {[%emt 0:00:44]} 28. b4 {[%emt 0:02:01]} Kc6 {[%emt 0:04:40]} 29. a4 {[%emt 0:00:53]} a6 {[%emt 0:01:27]} 30. Kg3 {[%emt 0:01:24]} Bd8 {[%emt 0:12:10]} 31. Kf3 {[%emt 0:04:14]} Kd7 {[%emt 0:04:14]} 32. b5 {[%emt 0:02:34]} Ke6 {[%emt 0:03:15]} 33. h3 {[%emt 0:02:07]} axb5 {[%emt 0:00:55]} 34. axb5 {[%emt 0:00:14]} h6 {[%emt 0:00:49]} 35. g4 {[%emt 0:01:54]} fxg4+ {[%emt 0:02:26]} 36. hxg4 {[%emt 0:01:38]} f5 {[%emt 0:01:05]} 37. b6 {[%emt 0:11:49]} Kd7 {[%emt 0:00:34]} 38. gxf5 {[%emt 0:01:32]} gxf5 {[%emt 0:01:53]} 39. Kg3 {[%emt 0:00:59]} Bf6 {[%emt 0:00:47]} 40. Bf2 {[%emt 0:01:13]} Kc6 {[%emt 0:00:41]} 41. Kh3 {[%emt 0:30:46]} Kb5 {[%emt 0:30:21]} 42. Kg2 {[%emt 0:00:23]} Kc6 {[%emt 0:10:50]} 43. Kh3 {[%emt 0:02:58]} Kd7 1/2-1/2

[Event "GER-ch Youth U12 2020"]
[Site "Willingen"]
[Date "2020.10.29"]
[Round "4.23"]
[White "Ivanov, Alexander"]
[Black "Aravindan, Midhulan"]
[Result "0-1"]
[ECO "D70"]
[WhiteElo "1261"]
[BlackElo "1565"]
[Annotator "NA RC"]
[PlyCount "98"]
[EventDate "2020.10.27"]
[EventType "swiss"]
[EventRounds "7"]
[EventCountry "GER"]
[SourceTitle "playchess.com"]
[Source "ChessBase"]
[SourceQuality "1"]
[TimeControl "40/5400+30:1800+30"]

1. d4 {[%emt 0:00:00]} Nf6 {[%emt 0:00:00]} 2. c4 {[%emt 0:00:00]} g6 {[%emt 0:00:00]} 3. Nf3 {[%emt 0:00:00]} Bg7 {[%emt 0:00:16]} 4. g3 {[%emt 0:00:08]} O-O {[%emt 0:00:52]} 5. Bg2 {[%emt 0:00:07]} e6 {[%emt 0:01:05]} 6. Nc3 {[%emt 0:00:43]} d5 {[%emt 0:00:49]} 7. b3 {[%emt 0:00:17]} c5 {[%emt 0:04:16]} 8. e3 {[%emt 0:01:51]} Nc6 {[%emt 0:01:36]} 9. O-O {[%emt 0:01:24]} a6 {[%emt 0:03:22]} 10. a4 {[%emt 0:01:55]} Rb8 {[%emt 0:01:48]} 11. Ba3 {[%emt 0:01:07]} Re8 {[%emt 0:06:36]} 12. Bxc5 {[%emt 0:01:59]} b6 {[%emt 0:02:00]} 13. Ba3 {[%emt 0:00:47]} Bb7 {[%emt 0:01:20]} 14. Qd2 {[%emt 0:01:24]} Na5 {[%emt 0:02:08]} 15. Qc2 {[%emt 0:05:56]} dxc4 {[%emt 0:02:53]} 16. bxc4 {[%emt 0:01:02]} Nxc4 {[%emt 0:01:25]} 17. Rfb1 {[%emt 0:02:46]} Qc7 {[%emt 0:05:09]} 18. Nd2 {[%emt 0:05:45]} Bxg2 {[%emt 0:03:07]} 19. Kxg2 {[%emt 0:00:17]} Rec8 {[%emt 0:01:40]} 20. Rc1 {[%emt 0:01:23]} Bf8 {[%emt 0:05:33]} 21. Bxf8 {[%emt 0:01:08]} Kxf8 {[%emt 0:01:18]} 22. Ra2 {[%emt 0:02:06]} Rb7 {[%emt 0:02:08]} 23. Kg1 {[%emt 0:02:00]} Qc6 {[%emt 0:06:52]} 24. Nxc4 {[%emt 0:01:34]} Qxc4 {[%emt 0:01:14]} 25. Nd1 {[%emt 0:02:00]} Rbc7 {[%emt 0:01:18]} 26. Qxc4 {[%emt 0:01:24]} Rxc4 {[%emt 0:00:41]} 27. Rxc4 {[%emt 0:00:14]} Rxc4 28. Kf1 {[%emt 0:00:41]} Ke7 {[%emt 0:00:35]} 29. Rb2 {[%emt 0:01:41]} Nd5 {[%emt 0:02:51]} 30. Ra2 {[%emt 0:01:19]} Rc1 {[%emt 0:01:04]} 31. Rd2 {[%emt 0:01:10]} Ra1 {[%emt 0:02:03]} 32. Ke2 {[%emt 0:01:00]} Rxa4 {[%emt 0:01:25]} 33. Nb2 {[%emt 0:00:55]} Ra2 {[%emt 0:02:05]} 34. Nc4 {[%emt 0:00:37]} Rxd2+ {[%emt 0:00:44]} 35. Kxd2 {[%emt 0:00:16]} b5 {[%emt 0:00:57]} 36. Na5 {[%emt 0:00:24]} Kd7 {[%emt 0:01:05]} 37. e4 {[%emt 0:00:26]} Ne7 {[%emt 0:00:46]} 38. Kc3 {[%emt 0:00:11]} f5 {[%emt 0:01:36]} 39. f3 {[%emt 0:00:36]} g5 {[%emt 0:00:57]} 40. h3 {[%emt 0:00:50]} h5 {[%emt 0:00:59]} 41. g4 {[%emt 0:31:49]} hxg4 {[%emt 0:32:59]} 42. hxg4 {[%emt 0:00:18]} f4 {[%emt 0:00:38]} 43. Kb4 {[%emt 0:00:55]} Nc6+ {[%emt 0:02:14]} 44. Nxc6 {[%emt 0:00:43]} Kxc6 {[%emt 0:00:33]} 45. Ka5 {[%emt 0:00:08]} Kb7 {[%emt 0:00:06]} 46. Kb4 {[%emt 0:02:33]} Kb6 {[%emt 0:00:42]} 47. d5 {[%emt 0:00:05]} exd5 {[%emt 0:00:14]} 48. exd5 {[%emt 0:00:27]} Kc7 {[%emt 0:00:07]} 49. Ka5 {[%emt 0:00:50]} Kd6 {[%emt 0:00:33]} 0-1

[Event "GER-ch Youth U12 2020"]
[Site "Willingen"]
[Date "2020.10.29"]
[Round "4.24"]
[White "Leubner, Paul Damdin"]
[Black "Schröder, Jan-Hendrik"]
[Result "1-0"]
[ECO "B38"]
[WhiteElo "1409"]
[BlackElo "1324"]
[Annotator "NA RC"]
[PlyCount "93"]
[EventDate "2020.10.27"]
[EventType "swiss"]
[EventRounds "7"]
[EventCountry "GER"]
[SourceTitle "playchess.com"]
[Source "ChessBase"]
[SourceQuality "1"]
[TimeControl "40/5400+30:1800+30"]

1. e4 {[%emt 0:00:00]} c5 {[%emt 0:00:00]} 2. Nf3 {[%emt 0:00:00]} Nc6 {[%emt 0:00:00]} 3. d4 {[%emt 0:00:00]} cxd4 {[%emt 0:00:00]} 4. Nxd4 {[%emt 0:00:00]} g6 {[%emt 0:00:00]} 5. c4 {[%emt 0:00:47]} Bg7 {[%emt 0:00:00]} 6. Be3 {[%emt 0:00:55]} d6 {[%emt 0:00:16]} 7. Nc3 {[%emt 0:00:31]} Nf6 {[%emt 0:00:28]} 8. Be2 {[%emt 0:01:13]} O-O {[%emt 0:00:31]} 9. f3 {[%emt 0:01:38]} Nxd4 {[%emt 0:01:26]} 10. Bxd4 {[%emt 0:00:25]} Be6 {[%emt 0:00:10]} 11. Qd2 {[%emt 0:05:38]} Rc8 {[%emt 0:01:25]} 12. g4 {[%emt 0:03:56]} Bxc4 {[%emt 0:02:47]} 13. Bxc4 {[%emt 0:00:33]} Rxc4 {[%emt 0:00:06]} 14. h4 {[%emt 0:02:10]} Nd7 {[%emt 0:01:23]} 15. Bxg7 {[%emt 0:01:32]} Kxg7 {[%emt 0:03:01]} 16. h5 {[%emt 0:04:39]} Ne5 {[%emt 0:01:02]} 17. Ke2 {[%emt 0:06:31]} Qb6 {[%emt 0:04:56]} 18. hxg6 {[%emt 0:01:42]} fxg6 {[%emt 0:01:20]} 19. Nd5 {[%emt 0:05:52]} Qd8 {[%emt 0:01:56]} 20. Raf1 {[%emt 0:09:19]} Rh8 {[%emt 0:07:45]} 21. b3 {[%emt 0:06:31]} Rc5 {[%emt 0:01:51]} 22. g5 {[%emt 0:07:29]} e6 {[%emt 0:02:54]} 23. Nf6 {[%emt 0:03:20]} Qc7 {[%emt 0:01:33]} 24. Rc1 {[%emt 0:02:24]} Rxc1 {[%emt 0:08:12]} 25. Rxc1 {[%emt 0:00:42]} Qb6 {[%emt 0:00:21]} 26. f4 {[%emt 0:05:42]} Nf7 {[%emt 0:05:10]} 27. Qd3 {[%emt 0:02:24]} Qa6 {[%emt 0:02:49]} 28. Qxa6 {[%emt 0:00:39]} bxa6 29. Ng4 {[%emt 0:03:10]} e5 {[%emt 0:07:50]} 30. f5 {[%emt 0:05:44]} Nxg5 {[%emt 0:00:49]} 31. Rc7+ {[%emt 0:02:09]} Kg8 {[%emt 0:06:18]} 32. Rc8+ {[%emt 0:02:29]} Kf7 {[%emt 0:01:43]} 33. Rxh8 {[%emt 0:00:52]} h5 {[%emt 0:00:13]} 34. fxg6+ {[%emt 0:01:32]} Kxg6 {[%emt 0:01:17]} 35. Nf2 {[%emt 0:00:40]} Ne6 {[%emt 0:00:43]} 36. Ra8 {[%emt 0:01:06]} Kg5 {[%emt 0:00:35]} 37. Kf3 {[%emt 0:01:27]} Nd4+ {[%emt 0:01:56]} 38. Kg2 {[%emt 0:01:23]} Ne2 {[%emt 0:03:12]} 39. Rxa7 {[%emt 0:01:11]} Kf4 {[%emt 0:00:34]} 40. Rxa6 {[%emt 0:01:39]} Nc3 {[%emt 0:01:00]} 41. b4 {[%emt 0:32:05]} Nxe4 {[%emt 0:30:14]} 42. Nxe4 {[%emt 0:00:13]} Kxe4 {[%emt 0:00:04]} 43. Rxd6 {[%emt 0:00:13]} Kf4 {[%emt 0:00:35]} 44. b5 {[%emt 0:00:14]} e4 {[%emt 0:00:05]} 45. b6 {[%emt 0:00:36]} e3 {[%emt 0:00:23]} 46. b7 {[%emt 0:00:20]} e2 {[%emt 0:01:16]} 47. Re6 {[%emt 0:00:16]} 1-0

[Event "GER-ch Youth U12 2020"]
[Site "Willingen"]
[Date "2020.10.29"]
[Round "4.25"]
[White "Dorendorf, Mika"]
[Black "Göpfert, Gregor"]
[Result "1/2-1/2"]
[ECO "A25"]
[WhiteElo "1462"]
[BlackElo "1603"]
[Annotator "NA RC"]
[PlyCount "93"]
[EventDate "2020.10.27"]
[EventType "swiss"]
[EventRounds "7"]
[EventCountry "GER"]
[SourceTitle "playchess.com"]
[Source "ChessBase"]
[SourceQuality "1"]
[TimeControl "40/5400+30:1800+30"]

1. c4 {[%emt 0:00:00]} e5 {[%emt 0:00:00]} 2. Nc3 {[%emt 0:00:07]} Nc6 {[%emt 0:00:31]} 3. g3 {[%emt 0:00:54]} g6 {[%emt 0:03:12]} 4. Bg2 {[%emt 0:02:26]} Bg7 {[%emt 0:00:16]} 5. Rb1 {[%emt 0:01:20]} a5 {[%emt 0:03:24]} 6. b3 {[%emt 0:01:49]} Nge7 {[%emt 0:00:46]} 7. Bb2 {[%emt 0:00:57]} O-O {[%emt 0:00:15]} 8. Nf3 {[%emt 0:01:25]} d6 {[%emt 0:00:43]} 9. O-O {[%emt 0:00:19]} Be6 {[%emt 0:00:34]} 10. Ne1 {[%emt 0:00:52]} Qd7 {[%emt 0:03:41]} 11. Nc2 {[%emt 0:00:46]} Bh3 {[%emt 0:00:37]} 12. Ne3 {[%emt 0:00:34]} Bxg2 {[%emt 0:00:31]} 13. Kxg2 {[%emt 0:00:09]} Nd4 {[%emt 0:03:42]} 14. Ned5 {[%emt 0:01:44]} Ne6 {[%emt 0:07:53]} 15. Rh1 {[%emt 0:02:20]} f5 {[%emt 0:01:22]} 16. Nxe7+ {[%emt 0:00:56]} Qxe7 {[%emt 0:00:01]} 17. Nd5 {[%emt 0:00:11]} Qd7 {[%emt 0:00:24]} 18. f3 {[%emt 0:03:56]} Rf7 {[%emt 0:02:28]} 19. Qg1 {[%emt 0:01:40]} h6 {[%emt 0:09:11]} 20. Kf2 {[%emt 0:07:58]} Re8 {[%emt 0:04:03]} 21. g4 {[%emt 0:01:34]} Kh7 {[%emt 0:02:51]} 22. gxf5 {[%emt 0:00:32]} gxf5 {[%emt 0:00:57]} 23. Qg3 {[%emt 0:01:28]} Bh8 {[%emt 0:06:14]} 24. Rbg1 {[%emt 0:01:31]} Bg7 {[%emt 0:05:09]} 25. Qg6+ {[%emt 0:00:33]} Kh8 {[%emt 0:00:32]} 26. e3 {[%emt 0:14:01]} Nf8 {[%emt 0:04:33]} 27. Qh5 {[%emt 0:01:52]} c6 {[%emt 0:02:55]} 28. Nc3 {[%emt 0:09:17]} Qe6 {[%emt 0:06:09]} 29. Ba3 {[%emt 0:01:27]} Rfe7 {[%emt 0:05:10]} 30. Ne2 {[%emt 0:01:57]} b5 {[%emt 0:08:30]} 31. Ng3 {[%emt 0:02:25]} b4 {[%emt 0:00:20]} 32. Bb2 {[%emt 0:00:47]} Rf7 {[%emt 0:00:41]} 33. Ke2 {[%emt 0:03:17]} Kh7 {[%emt 0:00:54]} 34. e4 {[%emt 0:00:22]} fxe4 35. Nxe4 {[%emt 0:00:27]} Kg8 {[%emt 0:05:27]} 36. Rg3 {[%emt 0:03:39]} d5 {[%emt 0:01:07]} 37. Nc5 {[%emt 0:02:26]} Qd6 {[%emt 0:01:13]} 38. Rxg7+ {[%emt 0:13:06]} Rxg7 {[%emt 0:00:13]} 39. Qxe8 {[%emt 0:00:16]} Qxc5 {[%emt 0:00:15]} 40. Qxe5 {[%emt 0:00:46]} Qe7 {[%emt 0:04:16]} 41. Qxe7 {[%emt 0:31:17]} Rxe7+ {[%emt 0:30:02]} 42. Kf2 {[%emt 0:00:33]} dxc4 {[%emt 0:00:58]} 43. Rg1+ {[%emt 0:00:17]} Kh7 {[%emt 0:00:14]} 44. bxc4 {[%emt 0:00:12]} Nd7 {[%emt 0:02:28]} 45. d4 {[%emt 0:00:53]} Nb6 {[%emt 0:01:03]} 46. c5 {[%emt 0:01:01]} Nd5 {[%emt 0:00:04]} 47. Rg4 1/2-1/2